[Event "*** Titled Tuesday Blitz"]
[Site "Chess.com"]
[Date "2019.12.03"]
[Round "2"]
[White "MPGM"]
[Black "Man-Chuk"]
[Result "0-1"]
[WhiteElo "2602"]
[BlackElo "2928"]
[TimeControl "180+2"]
[EndTime "13:24:02 PST"]
[Termination "Man-Chuk won by resignation"]

1. d4 {[%clk 0:03:01.9]} 1... Nf6 {[%clk 0:02:56]} 2. c4 {[%clk 0:03:02.2]} 2...
e6 {[%clk 0:02:57]} 3. Nf3 {[%clk 0:03:01.1]} 3... d5 {[%clk 0:02:55]} 4. g3
{[%clk 0:03:00.3]} 4... Bb4+ {[%clk 0:02:55.9]} 5. Bd2 {[%clk 0:02:58.4]} 5...
Be7 {[%clk 0:02:57]} 6. Bg2 {[%clk 0:02:58.8]} 6... O-O {[%clk 0:02:58.2]} 7.
O-O {[%clk 0:02:59.2]} 7... Nbd7 {[%clk 0:02:59.8]} 8. Qc2 {[%clk 0:02:57.1]}
8... c6 {[%clk 0:03:01.3]} 9. Bf4 {[%clk 0:02:57.4]} 9... b6 {[%clk 0:03:02.6]}
10. Nbd2 {[%clk 0:02:51.8]} 10... Nh5 {[%clk 0:03:00.7]} 11. Be3 {[%clk
0:02:49.4]} 11... Bb7 {[%clk 0:02:54.2]} 12. Rfd1 {[%clk 0:02:29.9]} 12... Rc8
{[%clk 0:02:55.2]} 13. Rac1 {[%clk 0:02:24.6]} 13... f5 {[%clk 0:02:55.5]} 14.
Nf1 {[%clk 0:02:16.3]} 14... g5 {[%clk 0:02:40.7]} 15. Bd2 {[%clk 0:02:07]}
15... h6 {[%clk 0:02:34.2]} 16. Qa4 {[%clk 0:01:59.2]} 16... a6 {[%clk
0:02:32.4]} 17. cxd5 {[%clk 0:01:56.8]} 17... cxd5 {[%clk 0:02:27.8]} 18. Bb4
{[%clk 0:01:57]} 18... Bxb4 {[%clk 0:02:05.2]} 19. Qxb4 {[%clk 0:01:57.8]} 19...
Nhf6 {[%clk 0:01:52]} 20. h4 {[%clk 0:01:34.9]} 20... Ne4 {[%clk 0:01:35.3]} 21.
hxg5 {[%clk 0:01:09.7]} 21... hxg5 {[%clk 0:01:36.1]} 22. Ne3 {[%clk 0:00:54.9]}
22... a5 {[%clk 0:01:11.4]} 23. Qe1 {[%clk 0:00:55]} 23... Qf6 {[%clk
0:01:07.9]} 24. Nf1 {[%clk 0:00:43.4]} 24... g4 {[%clk 0:01:03.1]} 25. N3d2
{[%clk 0:00:44.1]} 25... Ba6 {[%clk 0:00:59]} 26. e3 {[%clk 0:00:41]} 26... Ng5
{[%clk 0:00:58.7]} 27. Rxc8 {[%clk 0:00:40.2]} 27... Rxc8 {[%clk 0:00:59.3]} 28.
Rc1 {[%clk 0:00:41.7]} 28... Qd8 {[%clk 0:00:53.1]} 29. Nb1 {[%clk 0:00:38.7]}
29... Bd3 {[%clk 0:00:37.5]} 30. Rxc8 {[%clk 0:00:37.6]} 30... Qxc8 {[%clk
0:00:39.4]} 31. Qc3 {[%clk 0:00:37.2]} 31... Qxc3 {[%clk 0:00:28.1]} 32. Nxc3
{[%clk 0:00:39.1]} 32... Be4 {[%clk 0:00:29]} 33. Nxe4 {[%clk 0:00:36.4]} 33...
dxe4 {[%clk 0:00:30.2]} 34. Nd2 {[%clk 0:00:36.8]} 34... Kf7 {[%clk 0:00:28.3]}
35. Kf1 {[%clk 0:00:37.3]} 35... Ke7 {[%clk 0:00:29.6]} 36. Ke1 {[%clk
0:00:36.1]} 36... Nf6 {[%clk 0:00:29.6]} 37. Bf1 {[%clk 0:00:34.2]} 37... Nf3+
{[%clk 0:00:27.3]} 38. Kd1 {[%clk 0:00:30.3]} 38... Nd5 {[%clk 0:00:25.5]} 39.
a3 {[%clk 0:00:29.9]} 39... Kd6 {[%clk 0:00:24.8]} 40. Nc4+ {[%clk 0:00:30.7]}
40... Kc7 {[%clk 0:00:25.3]} 41. Ne5 {[%clk 0:00:26.4]} 41... Nxe5 {[%clk
0:00:25.3]} 42. dxe5 {[%clk 0:00:28.3]} 42... Kd7 {[%clk 0:00:18.6]} 43. Bb5+
{[%clk 0:00:26.6]} 43... Ke7 {[%clk 0:00:19.5]} 44. Kc2 {[%clk 0:00:27.9]} 44...
Kf7 {[%clk 0:00:16.4]} 45. Kb3 {[%clk 0:00:27.7]} 45... Ne7 {[%clk 0:00:17.8]}
46. Kc4 {[%clk 0:00:26.8]} 46... Ng6 {[%clk 0:00:19.3]} 47. Kd4 {[%clk
0:00:28.1]} 47... Ke7 {[%clk 0:00:20.8]} 48. b4 {[%clk 0:00:27.4]} 48... axb4
{[%clk 0:00:20.8]} 49. axb4 {[%clk 0:00:29.3]} 49... Kd8 {[%clk 0:00:22.3]} 50.
Bc6 {[%clk 0:00:29.2]} 50... Ne7 {[%clk 0:00:22]} 51. Bb5 {[%clk 0:00:29.2]}
51... Kc7 {[%clk 0:00:21.2]} 52. Be8 {[%clk 0:00:28.8]} 52... Kd8 {[%clk
0:00:18.9]} 53. Bb5 {[%clk 0:00:29.2]} 53... Nd5 {[%clk 0:00:19.1]} 54. Bc4
{[%clk 0:00:22.1]} 54... Nc7 {[%clk 0:00:18.9]} 55. Kc3 {[%clk 0:00:20.8]} 55...
Kd7 {[%clk 0:00:19.8]} 56. Kd4 {[%clk 0:00:22.2]} 56... Kc6 {[%clk 0:00:20.5]}
57. Be2 {[%clk 0:00:19.8]} 57... Nd5 {[%clk 0:00:18.3]} 58. b5+ {[%clk
0:00:20.4]} 58... Kd7 {[%clk 0:00:18.2]} 59. Bc4 {[%clk 0:00:22.3]} 59... Ne7
{[%clk 0:00:12.9]} 60. Bb3 {[%clk 0:00:23.1]} 60... Ng8 {[%clk 0:00:14.1]} 61.
Bc4 {[%clk 0:00:22.1]} 61... Nh6 {[%clk 0:00:15.5]} 62. Bb3 {[%clk 0:00:21.4]}
62... Nf7 {[%clk 0:00:16.9]} 63. Bc4 {[%clk 0:00:12.7]} 63... Ng5 {[%clk
0:00:18.3]} 64. Be2 {[%clk 0:00:07.1]} 64... Nh3 {[%clk 0:00:19.4]} 65. Bf1
{[%clk 0:00:05.5]} 65... Nxf2 {[%clk 0:00:20.6]} 66. Bg2 {[%clk 0:00:06.1]}
66... Nh3 {[%clk 0:00:21.9]} 67. Bf1 {[%clk 0:00:06.3]} 67... Ng5 {[%clk
0:00:23.2]} 68. Be2 {[%clk 0:00:06.1]} 68... Nf3+ {[%clk 0:00:24.7]} 69. Kc3
{[%clk 0:00:06.1]} 69... Nxe5 {[%clk 0:00:26]} 0-1

[Event "*** Titled Tuesday Blitz"]
[Site "Chess.com"]
[Date "2019.12.03"]
[Round "2"]
[White "Egorov_Pavel"]
[Black "earling8018"]
[Result "1/2-1/2"]
[WhiteElo "2372"]
[BlackElo "1922"]
[TimeControl "180+2"]
[EndTime "13:24:13 PST"]
[Termination "Game drawn by stalemate"]

1. d4 {[%clk 0:03:01.9]} 1... d6 {[%clk 0:02:59.4]} 2. Nf3 {[%clk 0:02:55.1]}
2... g6 {[%clk 0:02:58.9]} 3. c4 {[%clk 0:02:56.3]} 3... Bg7 {[%clk 0:03:00.1]}
4. Nc3 {[%clk 0:02:57.9]} 4... Bg4 {[%clk 0:03:00.1]} 5. h3 {[%clk 0:02:51.1]}
5... Bxf3 {[%clk 0:02:59.4]} 6. gxf3 {[%clk 0:02:53]} 6... e5 {[%clk 0:02:42.6]}
7. d5 {[%clk 0:02:51.7]} 7... Nf6 {[%clk 0:02:35]} 8. Ne4 {[%clk 0:02:41.9]}
8... Nbd7 {[%clk 0:02:32.7]} 9. Bg5 {[%clk 0:02:37]} 9... h6 {[%clk 0:02:31.5]}
10. Bh4 {[%clk 0:02:36.5]} 10... g5 {[%clk 0:02:23.5]} 11. Bg3 {[%clk 0:02:36]}
11... Nf8 {[%clk 0:01:37.1]} 12. e3 {[%clk 0:02:26.1]} 12... Ng6 {[%clk
0:01:35.1]} 13. Bd3 {[%clk 0:02:24.7]} 13... Qd7 {[%clk 0:00:50.2]} 14. Qc2
{[%clk 0:02:20.5]} 14... Nh5 {[%clk 0:00:46.9]} 15. O-O-O {[%clk 0:02:12]} 15...
Ne7 {[%clk 0:00:39.4]} 16. h4 {[%clk 0:02:02.8]} 16... f5 {[%clk 0:00:36.1]} 17.
Nc3 {[%clk 0:02:03.2]} 17... f4 {[%clk 0:00:31.8]} 18. Bg6+ {[%clk 0:02:03]}
18... Nxg6 {[%clk 0:00:31.8]} 19. Qxg6+ {[%clk 0:02:04.5]} 19... Qf7 {[%clk
0:00:33.3]} 20. Qxf7+ {[%clk 0:02:04.2]} 20... Kxf7 {[%clk 0:00:34.6]} 21. Bh2
{[%clk 0:02:03.3]} 21... a6 {[%clk 0:00:34.6]} 22. exf4 {[%clk 0:02:03.2]} 22...
gxf4 {[%clk 0:00:33.4]} 23. Ne4 {[%clk 0:02:03.5]} 23... Bf6 {[%clk 0:00:34.2]}
24. Rdg1 {[%clk 0:02:01.2]} 24... Rag8 {[%clk 0:00:34.9]} 25. c5 {[%clk
0:01:56.5]} 25... Be7 {[%clk 0:00:31.5]} 26. Rg4 {[%clk 0:01:51.6]} 26... dxc5
{[%clk 0:00:22.3]} 27. Rhg1 {[%clk 0:01:51.6]} 27... Nf6 {[%clk 0:00:18.2]} 28.
Nxf6 {[%clk 0:01:46.8]} 28... Bxf6 {[%clk 0:00:18.6]} 29. h5 {[%clk 0:01:43.7]}
29... Bg5 {[%clk 0:00:18.1]} 30. Re1 {[%clk 0:01:41.5]} 30... Kf6 {[%clk
0:00:18.8]} 31. Kc2 {[%clk 0:01:38]} 31... Rd8 {[%clk 0:00:19.6]} 32. Rd1 {[%clk
0:01:39.5]} 32... Rd6 {[%clk 0:00:20.7]} 33. Kc3 {[%clk 0:01:38]} 33... b5
{[%clk 0:00:18]} 34. a4 {[%clk 0:01:24.2]} 34... Rhd8 {[%clk 0:00:18]} 35. axb5
{[%clk 0:01:25.6]} 35... axb5 {[%clk 0:00:19.2]} 36. Ra1 {[%clk 0:01:26.4]}
36... Rxd5 {[%clk 0:00:20.1]} 37. Ra6+ {[%clk 0:01:25.7]} 37... R8d6 {[%clk
0:00:20.9]} 38. Ra7 {[%clk 0:01:27]} 38... Rd2 {[%clk 0:00:20.3]} 39. Kb3 {[%clk
0:01:25]} 39... R6d3+ {[%clk 0:00:20.3]} 40. Ka2 {[%clk 0:01:26.3]} 40... Rxf2
{[%clk 0:00:19.6]} 41. Bg1 {[%clk 0:01:24.5]} 41... Rfxf3 {[%clk 0:00:17.7]} 42.
Bxc5 {[%clk 0:01:23.6]} 42... e4 {[%clk 0:00:16.7]} 43. Rxc7 {[%clk 0:01:15.7]}
43... e3 {[%clk 0:00:15.2]} 44. Rg1 {[%clk 0:01:17.1]} 44... e2 {[%clk
0:00:14.5]} 45. Re1 {[%clk 0:01:18]} 45... Rd2 {[%clk 0:00:13.2]} 46. Re7 {[%clk
0:01:17.9]} 46... Re3 {[%clk 0:00:08.1]} 47. Bxe3 {[%clk 0:01:16.5]} 47... fxe3
{[%clk 0:00:08.8]} 48. Re4 {[%clk 0:01:08.1]} 48... Kf5 {[%clk 0:00:08.7]} 49.
Rb4 {[%clk 0:01:09.2]} 49... Kf6 {[%clk 0:00:06.6]} 50. Kb3 {[%clk 0:01:08.5]}
50... Ke6 {[%clk 0:00:04.2]} 51. Rg4 {[%clk 0:00:54.7]} 51... Be7 {[%clk
0:00:03.4]} 52. Rg2 {[%clk 0:00:53.2]} 52... Bf6 {[%clk 0:00:03.6]} 53. Rexe2
{[%clk 0:00:52.5]} 53... Rxe2 {[%clk 0:00:02.9]} 54. Rxe2 {[%clk 0:00:54.4]}
54... Bg5 {[%clk 0:00:04.1]} 55. Kb4 {[%clk 0:00:55.8]} 55... Ke5 {[%clk
0:00:04.7]} 56. Kxb5 {[%clk 0:00:56.1]} 56... Kd4 {[%clk 0:00:06.3]} 57. b4
{[%clk 0:00:27]} 57... Kd3 {[%clk 0:00:07.3]} 58. Ra2 {[%clk 0:00:25.6]} 58...
e2 {[%clk 0:00:07.7]} 59. Ra1 {[%clk 0:00:27]} 59... Kd2 {[%clk 0:00:07.5]} 60.
Kc4 {[%clk 0:00:24.2]} 60... e1=Q {[%clk 0:00:07.4]} 61. Rxe1 {[%clk 0:00:25.2]}
61... Kxe1 {[%clk 0:00:09.1]} 62. Kd3 {[%clk 0:00:24.4]} 62... Kf2 {[%clk
0:00:10.1]} 63. Ke4 {[%clk 0:00:25.9]} 63... Kg3 {[%clk 0:00:10.6]} 64. b5
{[%clk 0:00:27]} 64... Kg4 {[%clk 0:00:10.5]} 65. b6 {[%clk 0:00:27.3]} 65...
Bf4 {[%clk 0:00:10.5]} 66. b7 {[%clk 0:00:28.9]} 66... Bc7 {[%clk 0:00:10.6]}
67. Ke3 {[%clk 0:00:29.2]} 67... Kxh5 {[%clk 0:00:09.7]} 68. Kf2 {[%clk
0:00:31.1]} 68... Kg4 {[%clk 0:00:10.9]} 69. Kg2 {[%clk 0:00:33]} 69... Bb8
{[%clk 0:00:11.3]} 70. Kh1 {[%clk 0:00:34.9]} 70... Kh3 {[%clk 0:00:11.7]} 71.
Kg1 {[%clk 0:00:35.8]} 71... h5 {[%clk 0:00:12.6]} 72. Kh1 {[%clk 0:00:35.7]}
72... h4 {[%clk 0:00:12.5]} 73. Kg1 {[%clk 0:00:37.6]} 73... Bh2+ {[%clk
0:00:12.3]} 74. Kh1 {[%clk 0:00:39.5]} 74... Bb8 {[%clk 0:00:13.2]} 75. Kg1
{[%clk 0:00:40.8]} 75... Ba7+ {[%clk 0:00:14.7]} 76. Kh1 {[%clk 0:00:42.5]}
76... Kg3 {[%clk 0:00:15.6]} 77. b8=Q+ {[%clk 0:00:40]} 77... Bxb8 {[%clk
0:00:16.7]} 78. Kg1 {[%clk 0:00:41.9]} 78... h3 {[%clk 0:00:17.7]} 79. Kh1
{[%clk 0:00:43.8]} 79... h2 {[%clk 0:00:18.9]} 1/2-1/2

[Event "*** Titled Tuesday Blitz"]
[Site "Chess.com"]
[Date "2019.12.03"]
[Round "2"]
[White "albi1999"]
[Black "Msb2"]
[Result "1/2-1/2"]
[WhiteElo "2580"]
[BlackElo "2821"]
[TimeControl "180+2"]
[EndTime "13:24:19 PST"]
[Termination "Game drawn by repetition"]

1. d4 {[%clk 0:03:01.9]} 1... d5 {[%clk 0:02:59.3]} 2. c4 {[%clk 0:03:02.4]}
2... e6 {[%clk 0:03:01]} 3. Nf3 {[%clk 0:03:02.9]} 3... Nf6 {[%clk 0:03:02.2]}
4. g3 {[%clk 0:03:03]} 4... Bb4+ {[%clk 0:03:00.2]} 5. Bd2 {[%clk 0:03:03.7]}
5... Bd6 {[%clk 0:03:01.7]} 6. Nc3 {[%clk 0:03:03.3]} 6... O-O {[%clk
0:02:58.1]} 7. Bg5 {[%clk 0:03:02.6]} 7... c6 {[%clk 0:02:57.3]} 8. Bg2 {[%clk
0:03:00.4]} 8... h6 {[%clk 0:02:58.6]} 9. Bxf6 {[%clk 0:03:01.3]} 9... Qxf6
{[%clk 0:03:00.5]} 10. e3 {[%clk 0:02:59.6]} 10... Qd8 {[%clk 0:02:59.6]} 11.
Qe2 {[%clk 0:02:53.2]} 11... Nd7 {[%clk 0:02:59.9]} 12. O-O {[%clk 0:02:54]}
12... f5 {[%clk 0:02:58.6]} 13. Rab1 {[%clk 0:02:46.3]} 13... Qe7 {[%clk
0:02:58.6]} 14. a3 {[%clk 0:02:43.8]} 14... a5 {[%clk 0:02:59.3]} 15. Rfc1
{[%clk 0:02:40.3]} 15... g5 {[%clk 0:02:53.2]} 16. Qd3 {[%clk 0:02:36]} 16...
Kh8 {[%clk 0:02:53]} 17. Nd2 {[%clk 0:02:14.5]} 17... b6 {[%clk 0:02:46.6]} 18.
f4 {[%clk 0:02:13.6]} 18... Ba6 {[%clk 0:02:43.3]} 19. Ne2 {[%clk 0:02:06.6]}
19... Rg8 {[%clk 0:02:41.5]} 20. Qc3 {[%clk 0:01:53.5]} 20... Rac8 {[%clk
0:02:38.5]} 21. b4 {[%clk 0:01:44.5]} 21... axb4 {[%clk 0:02:17.8]} 22. axb4
{[%clk 0:01:46.4]} 22... Kh7 {[%clk 0:02:14.1]} 23. Qb2 {[%clk 0:01:45.3]} 23...
Nf6 {[%clk 0:02:03.9]} 24. Ra1 {[%clk 0:01:30.3]} 24... Ra8 {[%clk 0:01:46.5]}
25. c5 {[%clk 0:01:17.5]} 25... Bxe2 {[%clk 0:01:39.1]} 26. cxd6 {[%clk
0:01:17]} 26... Qxd6 {[%clk 0:01:41]} 27. Qc3 {[%clk 0:01:08]} 27... Bb5 {[%clk
0:01:36.8]} 28. Nf3 {[%clk 0:01:07.4]} 28... Ne4 {[%clk 0:01:35.7]} 29. Qb2
{[%clk 0:01:07.5]} 29... Bc4 {[%clk 0:01:25.8]} 30. Ne5 {[%clk 0:01:08.3]} 30...
b5 {[%clk 0:01:27.2]} 31. Bxe4 {[%clk 0:00:57.9]} 31... fxe4 {[%clk 0:01:22.5]}
32. fxg5 {[%clk 0:00:58.8]} 32... hxg5 {[%clk 0:01:22]} 33. Qg2 {[%clk
0:00:56.5]} 33... Kg7 {[%clk 0:00:57.6]} 34. Qh3 {[%clk 0:00:55]} 34... Rh8
{[%clk 0:00:47.5]} 35. Qg4 {[%clk 0:00:55.6]} 35... Qe7 {[%clk 0:00:49.2]} 36.
Nxc6 {[%clk 0:00:52]} 36... Qf6 {[%clk 0:00:42.1]} 37. Ne5 {[%clk 0:00:37.3]}
37... Qf5 {[%clk 0:00:41.9]} 38. Qxf5 {[%clk 0:00:33.4]} 38... exf5 {[%clk
0:00:43.8]} 39. Kg2 {[%clk 0:00:27.1]} 39... Kf6 {[%clk 0:00:36.4]} 40. Nd7+
{[%clk 0:00:28]} 40... Ke6 {[%clk 0:00:37.5]} 41. Nb6 {[%clk 0:00:29.3]} 41...
Rxa1 {[%clk 0:00:32.8]} 42. Rxa1 {[%clk 0:00:31.2]} 42... f4 {[%clk 0:00:34.3]}
43. gxf4 {[%clk 0:00:29]} 43... gxf4 {[%clk 0:00:36.2]} 44. exf4 {[%clk
0:00:30.2]} 44... Kf5 {[%clk 0:00:35.7]} 45. Nxc4 {[%clk 0:00:25.7]} 45... bxc4
{[%clk 0:00:33.5]} 46. Ra5 {[%clk 0:00:24.6]} 46... Kxf4 {[%clk 0:00:19.6]} 47.
Rxd5 {[%clk 0:00:24.7]} 47... e3 {[%clk 0:00:18.6]} 48. Rc5 {[%clk 0:00:15]}
48... Rg8+ {[%clk 0:00:10]} 49. Kf1 {[%clk 0:00:15.4]} 49... Ke4 {[%clk
0:00:11.6]} 50. Rxc4 {[%clk 0:00:14]} 50... Kd3 {[%clk 0:00:13.3]} 51. Rc1
{[%clk 0:00:08.7]} 51... e2+ {[%clk 0:00:14.6]} 52. Kf2 {[%clk 0:00:09.6]} 52...
Rf8+ {[%clk 0:00:13.8]} 53. Kg2 {[%clk 0:00:10]} 53... Kd2 {[%clk 0:00:11.5]}
54. Ra1 {[%clk 0:00:10.7]} 54... e1=Q {[%clk 0:00:12.2]} 55. Rxe1 {[%clk
0:00:11.2]} 55... Kxe1 {[%clk 0:00:14.1]} 56. h4 {[%clk 0:00:11.7]} 56... Rf4
{[%clk 0:00:12.5]} 57. Kg3 {[%clk 0:00:12.9]} 57... Rxd4 {[%clk 0:00:13.7]} 58.
b5 {[%clk 0:00:14.4]} 58... Rb4 {[%clk 0:00:14.3]} 59. h5 {[%clk 0:00:15.4]}
59... Ke2 {[%clk 0:00:14.8]} 60. b6 {[%clk 0:00:15.4]} 60... Rxb6 {[%clk
0:00:15.7]} 61. Kf4 {[%clk 0:00:16.3]} 61... Kd3 {[%clk 0:00:14.1]} 62. Kg5
{[%clk 0:00:15.3]} 62... Rb5+ {[%clk 0:00:12.3]} 63. Kg6 {[%clk 0:00:15.5]}
63... Ke4 {[%clk 0:00:12.4]} 64. h6 {[%clk 0:00:16.7]} 64... Rb6+ {[%clk
0:00:13.9]} 65. Kg7 {[%clk 0:00:17.4]} 65... Kf5 {[%clk 0:00:15]} 66. h7 {[%clk
0:00:18.8]} 66... Rb7+ {[%clk 0:00:16.7]} 67. Kh6 {[%clk 0:00:10.6]} 67... Rb8
{[%clk 0:00:16]} 68. Kg7 {[%clk 0:00:10.2]} 68... Rb7+ {[%clk 0:00:15.8]} 69.
Kh6 {[%clk 0:00:11.2]} 69... Rb6+ {[%clk 0:00:06.2]} 70. Kg7 {[%clk 0:00:11.9]}
70... Kg5 {[%clk 0:00:07.6]} 71. h8=Q {[%clk 0:00:10.9]} 71... Rb7+ {[%clk
0:00:09]} 72. Kg8 {[%clk 0:00:12.3]} 72... Rb8+ {[%clk 0:00:10.4]} 73. Kg7
{[%clk 0:00:13.7]} 73... Rb7+ {[%clk 0:00:11.6]} 74. Kg8 {[%clk 0:00:15]} 74...
Rb8+ {[%clk 0:00:13.1]} 75. Kg7 {[%clk 0:00:16.5]} 75... Rb7+ {[%clk 0:00:13.9]}
1/2-1/2

[Event "*** Titled Tuesday Blitz"]
[Site "Chess.com"]
[Date "2019.12.03"]
[Round "2"]
[White "WPWPWP-2015"]
[Black "Korchmar_Vasiliy"]
[Result "1-0"]
[WhiteElo "2544"]
[BlackElo "2744"]
[TimeControl "180+2"]
[EndTime "13:24:19 PST"]
[Termination "WPWPWP-2015 won by resignation"]

1. e4 {[%clk 0:03:01.9]} 1... c5 {[%clk 0:03:01.1]} 2. Nf3 {[%clk 0:03:00.5]}
2... d6 {[%clk 0:03:01.4]} 3. Bb5+ {[%clk 0:03:00.4]} 3... Bd7 {[%clk
0:02:59.6]} 4. c4 {[%clk 0:03:01]} 4... Bxb5 {[%clk 0:02:53.3]} 5. cxb5 {[%clk
0:03:02]} 5... g6 {[%clk 0:02:54.3]} 6. O-O {[%clk 0:02:59.5]} 6... Bg7 {[%clk
0:02:55.5]} 7. d4 {[%clk 0:02:58.3]} 7... cxd4 {[%clk 0:02:55.8]} 8. Nxd4 {[%clk
0:02:59.1]} 8... Nf6 {[%clk 0:02:57.1]} 9. Nc3 {[%clk 0:02:59.7]} 9... O-O
{[%clk 0:02:57.6]} 10. Re1 {[%clk 0:02:59]} 10... Nbd7 {[%clk 0:02:58.4]} 11. a4
{[%clk 0:02:59.3]} 11... Rc8 {[%clk 0:02:51]} 12. Be3 {[%clk 0:02:56.1]} 12...
Ne5 {[%clk 0:02:47.5]} 13. Nc2 {[%clk 0:02:26.9]} 13... Nc4 {[%clk 0:02:44.9]}
14. Bc1 {[%clk 0:02:27.5]} 14... Nd7 {[%clk 0:02:38.7]} 15. Qd3 {[%clk 0:02:18]}
15... Qa5 {[%clk 0:02:05.3]} 16. h3 {[%clk 0:01:20.2]} 16... Nxb2 {[%clk
0:01:54.8]} 17. Bxb2 {[%clk 0:01:20.3]} 17... Bxc3 {[%clk 0:01:56.1]} 18. Bxc3
{[%clk 0:01:17.6]} 18... Rxc3 {[%clk 0:01:58]} 19. Qd2 {[%clk 0:01:17.6]} 19...
Rfc8 {[%clk 0:01:50.2]} 20. Ne3 {[%clk 0:01:17.7]} 20... Nf6 {[%clk 0:01:47.5]}
21. Nd1 {[%clk 0:01:12.6]} 21... Qc7 {[%clk 0:01:11.9]} 22. Nxc3 {[%clk
0:01:12.4]} 22... Qxc3 {[%clk 0:01:13.8]} 23. Qxc3 {[%clk 0:01:04.2]} 23... Rxc3
{[%clk 0:01:14]} 24. e5 {[%clk 0:01:00.8]} 24... dxe5 {[%clk 0:01:04.9]} 25.
Rxe5 {[%clk 0:01:02.7]} 25... Kf8 {[%clk 0:01:06.4]} 26. Re3 {[%clk 0:00:55.2]}
26... Rc4 {[%clk 0:01:06.5]} 27. Rd3 {[%clk 0:00:54.7]} 27... e6 {[%clk
0:01:07.1]} 28. Rd8+ {[%clk 0:00:52.4]} 28... Kg7 {[%clk 0:01:05.2]} 29. Ra8
{[%clk 0:00:53.1]} 29... Nd5 {[%clk 0:01:00.6]} 30. Rxa7 {[%clk 0:00:52.4]}
30... b6 {[%clk 0:01:02.5]} 31. Rb7 {[%clk 0:00:36.3]} 31... g5 {[%clk 0:00:52]}
32. a5 {[%clk 0:00:35]} 32... bxa5 {[%clk 0:00:53.9]} 33. Rxa5 {[%clk
0:00:35.4]} 33... g4 {[%clk 0:00:40.3]} 34. hxg4 {[%clk 0:00:30.9]} 34... Rxg4
{[%clk 0:00:42.2]} 35. Raa7 {[%clk 0:00:29.8]} 35... Rf4 {[%clk 0:00:27.6]} 36.
g3 {[%clk 0:00:30.1]} 36... Rf5 {[%clk 0:00:25.8]} 37. b6 {[%clk 0:00:31.4]}
37... Kg6 {[%clk 0:00:26.8]} 38. Rb8 {[%clk 0:00:28.7]} 38... Nb4 {[%clk
0:00:22.6]} 39. Rg8+ {[%clk 0:00:20.3]} 39... Kf6 {[%clk 0:00:23.6]} 40. Rf8
{[%clk 0:00:19.9]} 40... Kg7 {[%clk 0:00:20.3]} 41. Rc8 {[%clk 0:00:18.3]} 41...
Rb5 {[%clk 0:00:20.6]} 42. Rcc7 {[%clk 0:00:15.8]} 42... Rxb6 {[%clk 0:00:16.9]}
43. Rxf7+ {[%clk 0:00:16.5]} 43... Kg6 {[%clk 0:00:18.2]} 44. Rg7+ {[%clk
0:00:16.1]} 44... Kf6 {[%clk 0:00:18.7]} 45. Rgb7 {[%clk 0:00:16.8]} 45... Rxb7
{[%clk 0:00:06.2]} 46. Rxb7 {[%clk 0:00:18.7]} 46... Nd5 {[%clk 0:00:07.4]} 47.
Rxh7 {[%clk 0:00:19.6]} 47... Nc3 {[%clk 0:00:08.9]} 48. Kg2 {[%clk 0:00:19.8]}
48... Ne4 {[%clk 0:00:10]} 49. Ra7 {[%clk 0:00:19.7]} 49... Ng5 {[%clk 0:00:11]}
50. Ra4 {[%clk 0:00:20.2]} 50... Nf7 {[%clk 0:00:12.1]} 51. Kf3 {[%clk
0:00:20.9]} 51... Ne5+ {[%clk 0:00:13.4]} 52. Ke4 {[%clk 0:00:21.6]} 52... Nd7
{[%clk 0:00:14.6]} 53. Ra8 {[%clk 0:00:21.3]} 53... Nc5+ {[%clk 0:00:15.4]} 54.
Kf4 {[%clk 0:00:21]} 54... Nd3+ {[%clk 0:00:16.6]} 55. Ke3 {[%clk 0:00:21.9]}
55... Ne5 {[%clk 0:00:17.5]} 56. Ra4 {[%clk 0:00:21.6]} 56... Nd7 {[%clk
0:00:17.5]} 57. Rf4+ {[%clk 0:00:21.6]} 57... Ke5 {[%clk 0:00:17.5]} 58. Re4+
{[%clk 0:00:19.9]} 58... Kf6 {[%clk 0:00:18.7]} 59. Kf4 {[%clk 0:00:17.3]} 59...
Nb6 {[%clk 0:00:19.7]} 60. Re1 {[%clk 0:00:14.2]} 60... Nd5+ {[%clk 0:00:20.8]}
61. Ke4 {[%clk 0:00:14]} 61... Nc3+ {[%clk 0:00:22]} 62. Kd4 {[%clk 0:00:13.3]}
62... Nd5 {[%clk 0:00:23.9]} 63. f4 {[%clk 0:00:10.8]} 63... Ne7 {[%clk
0:00:25.1]} 64. Rh1 {[%clk 0:00:09.2]} 64... Nf5+ {[%clk 0:00:26.1]} 65. Kd3
{[%clk 0:00:08.7]} 65... Nxg3 {[%clk 0:00:28]} 66. Rh4 {[%clk 0:00:05.2]} 66...
Nf5 {[%clk 0:00:29.1]} 67. Rg4 {[%clk 0:00:06]} 67... Nh6 {[%clk 0:00:30.2]} 68.
Rg5 {[%clk 0:00:06.4]} 68... Nf7 {[%clk 0:00:31.2]} 69. Rh5 {[%clk 0:00:06.8]}
69... Kg6 {[%clk 0:00:31.7]} 70. Ra5 {[%clk 0:00:07]} 70... Nd6 {[%clk
0:00:31.9]} 71. Ra6 {[%clk 0:00:06.4]} 71... Nb7 {[%clk 0:00:30.9]} 72. Rxe6+
{[%clk 0:00:06.8]} 72... Kf5 {[%clk 0:00:32.4]} 73. Re7 {[%clk 0:00:06]} 73...
Na5 {[%clk 0:00:21.6]} 74. Re5+ {[%clk 0:00:05.8]} 1-0